fUST/lending_fUST_20250722
["ID","MTS","AMOUNT","RATE_DAILY","PERIOD"]
[374012630,1753181434497,-1006.03,0.00016858,2]
[374012631,1753181434507,-263.09915741,0.00016859,2]
[374012632,1753181434519,-460.0,0.00016859,2]
[374012633,1753181434529,-460.0,0.00016859,2]
[374012634,1753181434538,-460.0,0.00016859,2]
[374012635,1753181434548,-162.59938581,0.00016859,2]
[374012636,1753181434558,-460.0,0.00016859,2]
[374012637,1753181434567,-460.0,0.00016859,2]
[374012638,1753181434577,-460.0,0.00016859,2]
[374012639,1753181434586,-410.56461661,0.00016859,2]
[374012640,1753181434596,-460.0,0.00016859,2]
[374012641,1753181434605,-174.46970914,0.00016859,2]
[374012642,1753181434614,-460.0,0.00016859,2]
[374012643,1753181434624,-467.27767351,0.00016859,2]
[374012644,1753181434633,-472.45662599,0.00016859,2]
[374012645,1753181434643,-460.0,0.00016859,2]
[374012646,1753181434652,-460.0,0.00016859,2]
[374012647,1753181434662,-460.0,0.00016859,2]
[374012648,1753181434671,-354.97455592,0.00016859,2]
[374012649,1753181434681,-250.6523242,0.00016859,2]
[374012650,1753181434690,-460.0,0.00016859,2]
[374012651,1753181434700,-460.0,0.00016859,2]
[374012652,1753181434709,-460.0,0.00016859,2]
[374012653,1753181434719,-460.0,0.00016859,2]
[374012654,1753181434728,-460.0,0.00016859,2]
[374012655,1753181434738,-460.0,0.00016859,2]
[374012656,1753181434747,-460.0,0.00016859,2]
[374012657,1753181434756,-460.0,0.00016859,2]
[374012658,1753181434765,-460.0,0.00016859,2]
[374012659,1753181434774,-460.0,0.00016859,2]
[374012660,1753181434783,-460.0,0.00016859,2]
[374012661,1753181434792,-460.0,0.00016859,2]
[374012662,1753181434802,-460.0,0.00016859,2]
[374012663,1753181434811,-460.0,0.00016859,2]
[374012664,1753181434821,-684.09,0.0001686,2]
[374012665,1753181434830,-460.0,0.0001686,2]
[374012666,1753181434839,-460.0,0.00016861,2]
[374012667,1753181434848,-460.0,0.00016861,2]
[374012668,1753181434857,-500.0,0.00016861,2]
[374012669,1753181434867,-280.71,0.0001712,3]
[374012670,1753181434876,-243.71,0.0001712,3]
[374012671,1753181434885,-731.18,0.0001712,3]
[374012672,1753181434894,-655.89279042,0.00017121,3]
[374012673,1753181434915,-240.23720958,0.00017121,3]
[374012674,1753181434924,-561.43,0.00017121,3]
[374012675,1753181434933,-460.0,0.00017128,2]
[374012676,1753181434942,-460.0,0.00017128,2]
[374012677,1753181434952,-460.0,0.00017128,2]
[374012678,1753181434961,-460.0,0.00017128,2]
[374012679,1753181434971,-33.79219543,0.00017128,2]
[374012680,1753181434984,-426.20780457,0.00017128,2]
[374012681,1753181434993,-460.0,0.00017128,2]
[374012682,1753181435003,-373.48745849,0.00017129,2]
[374012683,1753181435012,-397.89835768,0.00017129,2]
[374012684,1753181435023,-460.0,0.00017129,2]
[374012685,1753181435032,-460.0,0.00017129,2]
[374012686,1753181435041,-460.0,0.00017129,2]
[374012687,1753181435050,-590.54915921,0.00017129,2]
[374012688,1753181435060,-460.0,0.00017129,2]
[374012689,1753181435069,-460.0,0.00017129,2]
[374012690,1753181435078,-460.0,0.00017129,2]
[374012691,1753181435088,-460.0,0.00017129,2]
[374012692,1753181435097,-460.0,0.00017129,2]
[374012693,1753181435107,-460.0,0.00017129,2]
[374012694,1753181435117,-460.0,0.00017129,2]
[374012695,1753181435126,-460.0,0.00017129,2]
[374012696,1753181435135,-460.0,0.00017129,2]
[374012697,1753181435145,-460.0,0.00017129,2]
[374012698,1753181435155,-460.0,0.00017129,2]
[374012699,1753181435164,-460.0,0.00017129,2]
[374012700,1753181435176,-460.0,0.00017129,2]
[374012701,1753181435186,-460.0,0.00017129,2]
[374012702,1753181435196,-1625.59,0.00017129,2]
[374012703,1753181435205,-460.0,0.00017129,2]
[374012704,1753181435215,-460.0,0.00017129,2]
[374012705,1753181435224,-2498.66,0.00017129,2]
[374012706,1753181435234,-460.0,0.00017129,2]
[374012707,1753181435246,-1410.27,0.00017129,2]
[374012708,1753181435256,-460.0,0.00017129,2]
[374012709,1753181435265,-460.0,0.00017129,2]
[374012710,1753181435275,-460.0,0.00017129,2]
[374012711,1753181435285,-460.0,0.00017129,2]
[374012712,1753181435294,-930.79,0.00017129,2]
[374012713,1753181435304,-460.0,0.00017129,2]
[374012714,1753181435313,-460.0,0.00017129,2]
[374012715,1753181435322,-460.0,0.00017129,2]
[374012716,1753181435331,-460.0,0.00017129,2]
[374012717,1753181435341,-460.0,0.00017129,2]
[374012718,1753181435350,-460.0,0.00017129,2]
[374012719,1753181435360,-460.0,0.00017129,2]
[374012720,1753181435369,-460.0,0.00017129,2]
[374012721,1753181435378,-460.0,0.00017129,2]
[374012722,1753181435388,-460.0,0.00017129,2]
[374012723,1753181435398,-460.0,0.00017129,2]
[374012724,1753181435408,-460.0,0.00017129,2]
[374012725,1753181435418,-1069.15,0.00017129,2]
[374012726,1753181435428,-460.0,0.00017129,2]
[374012727,1753181435438,-460.0,0.00017129,2]
[374012728,1753181435447,-460.0,0.00017129,2]
[374012729,1753181435456,-460.0,0.0001713,2]
[374012730,1753181435466,-460.0,0.0001713,2]
[374012731,1753181435475,-460.0,0.0001713,2]
[374012732,1753181435485,-500.97,0.0001713,2]
[374012733,1753181435495,-460.0,0.0001713,2]
[374012734,1753181435504,-460.0,0.0001713,2]
[374012735,1753181435514,-479.89,0.0001713,2]
[374012736,1753181435524,-460.0,0.0001713,2]
[374012737,1753181435533,-460.0,0.0001713,2]
[374012738,1753181435543,-460.0,0.0001713,2]
[374012739,1753181435552,-172.41,0.0001713,2]
[374012740,1753181435561,-460.0,0.0001713,2]
[374012741,1753181435570,-460.0,0.0001713,2]
[374012742,1753181435580,-420.0,0.0001713,2]
[374012743,1753181435590,-460.0,0.0001713,2]
[374012744,1753181435599,-460.0,0.0001713,2]
[374012745,1753181435609,-3622.45,0.0001713,2]
[374012746,1753181435618,-460.0,0.0001713,2]
[374012747,1753181435627,-819.49,0.0001713,2]
[374012748,1753181435636,-460.0,0.0001713,2]
[374012749,1753181435645,-460.0,0.0001713,2]
[374012750,1753181435655,-460.0,0.00017131,2]
[374012751,1753181435665,-460.0,0.00017131,2]
[374012752,1753181435675,-460.0,0.00017131,2]
[374012753,1753181435684,-511.16,0.00017131,2]
[374012754,1753181435694,-1698.54,0.00017131,2]
[374012755,1753181435703,-903.0,0.00017132,2]
[374012756,1753181435712,-585.64,0.00017132,2]
[374012757,1753181435722,-460.0,0.00017132,2]
[374012758,1753181435731,-743.76,0.00017132,2]
[374012759,1753181435741,-2113.34,0.00017132,2]
[374012760,1753181435750,-460.0,0.00017133,2]
[374012761,1753181435759,-460.0,0.00017133,2]
[374012762,1753181435769,-460.0,0.00017133,2]
[374012763,1753181435778,-183.39556325,0.00017133,2]
[374012764,1753181435791,-276.60443675,0.00017133,2]
[374012765,1753181435800,-460.0,0.00017133,2]
[374012766,1753181435809,-460.0,0.00017133,2]
[374012767,1753181435818,-390.65392384,0.00017133,2]
[374012768,1753181435828,-684.09,0.00017134,2]
[374012769,1753181435837,-427.43199455,0.00017135,2]
[374012770,1753181435846,-22.59063969,0.00017303,2]
[374012807,1753181438424,-499.14000948,0.00016855,2]
[374012809,1753181438434,-1006.03,0.00017132,2]
[374012811,1753181438443,-663.64861612,0.00017303,2]
[374012813,1753181438452,-557.86,0.00017394,3]
[374012814,1753181438462,-460.0,0.00017402,2]
[374012815,1753181438472,-460.0,0.00017402,2]
[374012816,1753181438482,-460.0,0.00017402,2]
[374012818,1753181438492,-460.0,0.00017402,2]
[374012820,1753181438501,-460.0,0.00017403,2]
[374012822,1753181438512,-477.57,0.00017403,2]
[374012824,1753181438521,-460.0,0.00017403,2]
[374012826,1753181438531,-460.0,0.00017403,2]
[374012828,1753181438541,-460.0,0.00017403,2]
[374012830,1753181438550,-460.0,0.00017403,2]
[374012832,1753181438560,-460.0,0.00017403,2]
[374012834,1753181438569,-460.0,0.00017403,2]
[374012836,1753181438579,-460.0,0.00017403,2]
[374012838,1753181438589,-196.63568455,0.00017403,2]
[374012840,1753181438598,-460.0,0.00017403,2]
[374012842,1753181438608,-460.0,0.00017403,2]
[374012844,1753181438617,-1625.59,0.00017403,2]
[374012846,1753181438627,-460.0,0.00017403,2]
[374012848,1753181438636,-460.0,0.00017403,2]
[374012849,1753181438646,-2498.66,0.00017403,2]
[374012851,1753181438655,-460.0,0.00017403,2]
[374012853,1753181438665,-1410.27,0.00017403,2]
[374012855,1753181438674,-460.0,0.00017403,2]
[374012857,1753181438683,-460.0,0.00017403,2]
[374012859,1753181438692,-460.0,0.00017403,2]
[374012861,1753181438702,-460.0,0.00017403,2]
[374012863,1753181438712,-930.79,0.00017403,2]
[374012865,1753181438721,-460.0,0.00017403,2]
[374012867,1753181438731,-460.0,0.00017403,2]
[374012869,1753181438740,-460.0,0.00017403,2]
[374012871,1753181438749,-460.0,0.00017403,2]
[374012874,1753181438760,-460.0,0.00017403,2]
[374012876,1753181438770,-597.34,0.00017403,2]
[374012878,1753181438779,-460.0,0.00017403,2]
[374012880,1753181438789,-460.0,0.00017403,2]
[374012882,1753181438798,-460.0,0.00017403,2]
[374012883,1753181438809,-460.0,0.00017403,2]
[374012885,1753181438818,-605.94981198,0.00017403,2]
[374012887,1753181438829,-1069.15,0.00017403,2]
[374012889,1753181438838,-262.99,0.00017403,2]
[374012891,1753181438847,-460.0,0.00017403,2]
[374012893,1753181438856,-500.0,0.00017403,2]
[374012895,1753181438866,-500.0,0.00017403,2]
[374012897,1753181438875,-229.8950136,0.00017403,2]
[374012899,1753181438884,-500.0,0.00017403,2]
[374012901,1753181438894,-500.0,0.00017403,2]
[374012903,1753181438903,-500.0,0.00017403,2]
[374012905,1753181438913,-500.0,0.00017403,2]
[374012907,1753181438921,-500.0,0.00017403,2]
[374012909,1753181438931,-500.0,0.00017403,2]
[374012911,1753181438940,-500.0,0.00017403,2]
[374012913,1753181438949,-500.0,0.00017403,2]
[374012914,1753181438958,-500.0,0.00017403,2]
[374012915,1753181438968,-500.0,0.00017403,2]
[374012916,1753181438977,-500.0,0.00017403,2]
[374012917,1753181438986,-500.0,0.00017403,2]
[374012919,1753181438995,-586.94508179,0.00017403,2]
[374012921,1753181439005,-500.0,0.00017403,2]
[374012923,1753181439016,-500.0,0.00017403,2]
[374012924,1753181439025,-500.0,0.00017403,2]
[374012926,1753181439035,-500.0,0.00017403,2]
[374012928,1753181439045,-500.0,0.00017403,2]
[374012930,1753181439054,-500.0,0.00017403,2]
[374012931,1753181439063,-557.74191917,0.00017403,2]
[374012933,1753181439072,-500.0,0.00017403,2]
[374012935,1753181439082,-500.0,0.00017403,2]
[374012937,1753181439091,-500.0,0.00017403,2]
[374012938,1753181439100,-500.0,0.00017403,2]
[374012939,1753181439109,-500.0,0.00017403,2]
[374012941,1753181439118,-500.0,0.00017403,2]
[374012942,1753181439128,-500.0,0.00017403,2]
[374012943,1753181439137,-500.0,0.00017403,2]
[374012945,1753181439146,-500.0,0.00017403,2]
[374012947,1753181439155,-500.0,0.00017403,2]
[374012949,1753181439165,-500.0,0.00017403,2]
[374012950,1753181439178,-155.82148731,0.00017403,2]
[374012951,1753181439187,-500.0,0.00017403,2]
[374012952,1753181439197,-460.0,0.00017404,2]
[374012953,1753181439206,-458.03268078,0.00017404,2]
[374012954,1753181439218,-460.0,0.00017404,2]
[374012955,1753181439227,-500.97,0.00017404,2]
[374012956,1753181439237,-462.8,0.00017404,2]
[374012957,1753181439248,-460.0,0.00017404,2]
[374012958,1753181439258,-479.89,0.00017404,2]
[374012959,1753181439268,-460.0,0.00017404,2]
[374012960,1753181439278,-460.0,0.00017404,2]
[374012961,1753181439287,-460.0,0.00017404,2]
[374012962,1753181439296,-460.0,0.00017404,2]
[374012963,1753181439305,-460.0,0.00017404,2]
[374012964,1753181439315,-460.0,0.00017404,2]
[374012965,1753181439325,-3622.45,0.00017404,2]
[374012966,1753181439335,-460.0,0.00017404,2]
[374012967,1753181439345,-819.49,0.00017404,2]
[374012968,1753181439354,-460.0,0.00017404,2]
[374012969,1753181439364,-583.14,0.00017404,2]
[374012970,1753181439373,-460.0,0.00017405,2]
[374012971,1753181439383,-460.0,0.00017405,2]
[374012972,1753181439392,-460.0,0.00017405,2]
[374012973,1753181439402,-511.16,0.00017405,2]
[374012974,1753181439411,-1698.54,0.00017405,2]
[374012975,1753181439421,-585.64,0.00017406,2]
[374012976,1753181439431,-460.0,0.00017406,2]
[374012977,1753181439440,-743.76,0.00017406,2]
[374012978,1753181439451,-2113.34,0.00017406,2]
[374012979,1753181439460,-1006.03,0.00017406,2]
[374012980,1753181439470,-460.0,0.00017407,2]
[374012981,1753181439479,-460.0,0.00017407,2]
[374012982,1753181439489,-460.0,0.00017407,2]
[374012983,1753181439499,-460.0,0.00017407,2]
[374012984,1753181439510,-684.09,0.00017408,2]
[374012985,1753181439519,-460.0,0.00017676,2]
[374012986,1753181439529,-555.83,0.00017676,2]
[374012987,1753181439539,-460.0,0.00017676,2]
[374012988,1753181439549,-460.0,0.00017677,2]
[374012989,1753181439558,-460.0,0.00017677,2]
[374012990,1753181439567,-460.0,0.00017677,2]
[374012991,1753181439576,-460.0,0.00017677,2]
[374012992,1753181439586,-460.0,0.00017677,2]
[374012993,1753181439596,-460.0,0.00017677,2]
[374012994,1753181439605,-460.0,0.00017677,2]
[374012995,1753181439615,-460.0,0.00017677,2]
[374012996,1753181439624,-1625.59,0.00017677,2]
[374012997,1753181439634,-460.0,0.00017677,2]
[374012998,1753181439643,-460.0,0.00017677,2]
[374012999,1753181439653,-2498.66,0.00017677,2]
[374013000,1753181439662,-460.0,0.00017677,2]
[374013001,1753181439673,-1410.27,0.00017677,2]
[374013002,1753181439683,-460.0,0.00017677,2]
[374013003,1753181439693,-460.0,0.00017677,2]
[374013004,1753181439703,-930.79,0.00017677,2]
[374013005,1753181439713,-460.0,0.00017677,2]
[374013006,1753181439722,-460.0,0.00017677,2]
[374013007,1753181439733,-151.42606195,0.00017677,2]
[374013008,1753181439742,-460.0,0.00017677,2]
[374013009,1753181439752,-460.0,0.00017677,2]
[374013010,1753181439762,-460.0,0.00017677,2]
[374013011,1753181439771,-460.0,0.00017677,2]
[374013012,1753181439781,-1069.15,0.00017677,2]
[374013013,1753181439791,-460.0,0.00017677,2]
[374013014,1753181439801,-460.0,0.00017678,2]
[374013015,1753181439811,-460.0,0.00017678,2]
[374013016,1753181439821,-500.97,0.00017678,2]
[374013017,1753181439831,-479.89,0.00017678,2]
[374013018,1753181439841,-460.0,0.00017678,2]
[374013019,1753181439850,-460.0,0.00017678,2]
[374013020,1753181439860,-460.0,0.00017678,2]
[374013021,1753181439869,-502.02656241,0.00017678,2]
[374013022,1753181439879,-460.0,0.00017678,2]
[374013023,1753181439889,-460.0,0.00017678,2]
[374013024,1753181439899,-3622.45,0.00017678,2]
[374013025,1753181439908,-460.0,0.00017678,2]
[374013026,1753181439918,-819.49,0.00017678,2]
[374013027,1753181439927,-460.0,0.00017678,2]
[374013028,1753181439937,-460.0,0.00017679,2]
[374013029,1753181439947,-460.0,0.00017679,2]
[374013030,1753181439957,-511.16,0.00017679,2]
[374013031,1753181439967,-1698.54,0.00017679,2]
[374013032,1753181439976,-585.64,0.0001768,2]
[374013033,1753181439986,-460.0,0.0001768,2]
[374013035,1753181439996,-743.76,0.0001768,2]
[374013036,1753181440006,-2113.34,0.0001768,2]
[374013037,1753181440018,-1006.03,0.0001768,2]
[374013038,1753181440027,-460.0,0.00017681,2]
[374013039,1753181440037,-510.64774941,0.00017681,2]
[374013040,1753181440047,-460.0,0.00017681,2]
[374013041,1753181440057,-460.0,0.00017681,2]
[374013042,1753181440067,-684.09,0.00017682,2]
[374013043,1753181440077,-500.0,0.00017769,2]
[374013044,1753181440088,-503.14242823,0.00017811,2]
[374013046,1753181440098,-500.0,0.00017822,2]
[374013047,1753181440108,-503.50332979,0.00017822,2]
[374013048,1753181440118,-4372.02875868,0.000179,2]
[374013049,1753181440127,-460.0,0.0001795,2]
[374013050,1753181440137,-454.21,0.0001795,2]
[374013052,1753181440147,-227.08,0.00017951,2]
[374013053,1753181440156,-460.0,0.00017951,2]
[374013054,1753181440169,-460.0,0.00017951,2]
[374013055,1753181440178,-460.0,0.00017951,2]
[374013056,1753181440188,-179.88,0.00017951,2]
[374013057,1753181440198,-460.0,0.00017951,2]
[374013058,1753181440208,-460.0,0.00017951,2]
[374013059,1753181440218,-1625.59,0.00017951,2]
[374013060,1753181440228,-460.0,0.00017951,2]
[374013061,1753181440238,-460.0,0.00017951,2]
[374013062,1753181440248,-2498.66,0.00017951,2]
[374013063,1753181440258,-460.0,0.00017951,2]
[374013064,1753181440270,-1410.27,0.00017951,2]
[374013065,1753181440279,-460.0,0.00017951,2]
[374013066,1753181440289,-460.0,0.00017951,2]
[374013067,1753181440299,-930.79,0.00017951,2]
[374013068,1753181440309,-460.0,0.00017951,2]
[374013069,1753181440319,-460.0,0.00017951,2]
[374013070,1753181440329,-460.0,0.00017951,2]
[374013071,1753181440339,-460.0,0.00017951,2]
[374013072,1753181440349,-460.0,0.00017951,2]
[374013073,1753181440359,-460.0,0.00017951,2]
[374013075,1753181440369,-1069.15,0.00017951,2]
[374013077,1753181440379,-460.0,0.00017951,2]
[374013079,1753181440389,-460.0,0.00017952,2]
[374013080,1753181440399,-460.0,0.00017952,2]
[374013081,1753181440408,-500.97,0.00017952,2]
[374013082,1753181440418,-479.89,0.00017952,2]
[374013083,1753181440428,-460.0,0.00017952,2]
[374013084,1753181440437,-460.0,0.00017952,2]
[374013085,1753181440447,-460.0,0.00017952,2]
[374013086,1753181440456,-460.0,0.00017952,2]
[374013087,1753181440466,-460.0,0.00017952,2]
[374013088,1753181440476,-3622.45,0.00017952,2]
[374013089,1753181440486,-460.0,0.00017952,2]
[374013090,1753181440496,-819.49,0.00017952,2]
[374013091,1753181440507,-460.0,0.00017952,2]
[374013092,1753181440517,-460.0,0.00017953,2]
[374013093,1753181440527,-460.0,0.00017953,2]
[374013094,1753181440537,-511.16,0.00017953,2]
[374013095,1753181440547,-1698.54,0.00017953,2]
[374013096,1753181440556,-585.64,0.00017954,2]
[374013097,1753181440566,-460.0,0.00017954,2]
[374013098,1753181440578,-743.76,0.00017954,2]
[374013100,1753181440588,-2113.34,0.00017954,2]
[374013102,1753181440597,-1006.03,0.00017954,2]
[374013103,1753181440607,-462.5522571,0.00017955,2]
[374013105,1753181440617,-460.0,0.00017955,2]
[374013116,1753181440719,-684.09,0.00017956,2]
[374013118,1753181440729,-2845.39533254,0.00018125,2]
[374013120,1753181440738,-4372.02875841,0.00018176,2]
[374013122,1753181440748,-573.01,0.00018224,2]
[374013124,1753181440758,-460.0,0.00018225,2]
[374013126,1753181440769,-460.0,0.00018225,2]
[374013128,1753181440779,-460.0,0.00018225,2]
[374013130,1753181440788,-460.0,0.00018225,2]
[374013131,1753181440798,-439.16934566,0.00018225,2]
[374013133,1753181440808,-1625.59,0.00018225,2]
[374013135,1753181440817,-460.0,0.00018225,2]
[374013137,1753181440827,-460.0,0.00018225,2]
[374013138,1753181440837,-2498.66,0.00018225,2]
[374013140,1753181440846,-460.0,0.00018225,2]
[374013142,1753181440856,-1410.27,0.00018225,2]
[374013143,1753181440866,-194.61,0.00018225,2]
[374013146,1753181440876,-460.0,0.00018225,2]
[374013147,1753181440886,-930.79,0.00018225,2]
[374013149,1753181440895,-460.0,0.00018225,2]
[374013151,1753181440904,-460.0,0.00018225,2]
[374013153,1753181440914,-460.0,0.00018225,2]
[374013155,1753181440924,-460.0,0.00018225,2]
[374013157,1753181440934,-460.0,0.00018225,2]
[374013159,1753181440943,-460.0,0.00018225,2]
[374013161,1753181440953,-1069.15,0.00018225,2]
[374013162,1753181440962,-500.0,0.00018225,2]
[374013164,1753181440972,-460.0,0.00018225,2]
[374013166,1753181440981,-599.00652439,0.00018226,2]
[374013168,1753181440991,-460.0,0.00018226,2]
[374013170,1753181441000,-500.97,0.00018226,2]
[374013171,1753181441010,-479.89,0.00018226,2]
[374013174,1753181441022,-460.0,0.00018226,2]
[374013175,1753181441032,-460.0,0.00018226,2]
[374013178,1753181441042,-460.0,0.00018226,2]
[374013179,1753181441051,-281.22976621,0.00018226,2]
[374013181,1753181441061,-460.0,0.00018226,2]
[374013183,1753181441070,-3622.45,0.00018226,2]
[374013185,1753181441082,-460.0,0.00018226,2]
[374013187,1753181441092,-819.49,0.00018226,2]
[374013189,1753181441102,-460.0,0.00018226,2]
[374013191,1753181441111,-251.21080644,0.00018227,2]
[374013193,1753181441121,-460.0,0.00018227,2]
[374013194,1753181441130,-511.16,0.00018227,2]
[374013195,1753181441140,-1698.54,0.00018227,2]
[374013196,1753181441149,-585.64,0.00018228,2]
[374013197,1753181441159,-460.0,0.00018228,2]
[374013198,1753181441172,-743.76,0.00018228,2]
[374013199,1753181441181,-2113.34,0.00018228,2]
[374013200,1753181441191,-1006.03,0.00018228,2]
[374013201,1753181441200,-460.0,0.00018229,2]
[374013202,1753181441211,-684.09,0.0001823,2]
[374013203,1753181441222,-278.02060332,0.00018317,2]
[374013204,1753181441232,-1048.56607355,0.0001837,2]
[374013205,1753181441241,-160.0,0.0001838,2]
[374013206,1753181441251,-210.0,0.0001841,2]
[374013207,1753181441261,-4372.02875841,0.00018452,2]
[374013208,1753181441271,-686.23925577,0.00018452,2]
[374013209,1753181441281,-561.42,0.0001849,3]
[374013210,1753181441290,-487.42,0.0001849,3]
[374013211,1753181441299,-1792.26,0.00018491,3]
[374013212,1753181441309,-1122.86,0.00018491,3]
[374013213,1753181441318,-460.0,0.00018499,2]
[374013214,1753181441328,-460.0,0.00018499,2]
[374013215,1753181441337,-460.0,0.00018499,2]
[374013216,1753181441346,-460.0,0.00018499,2]
[374013217,1753181441356,-1625.59,0.00018499,2]
[374013218,1753181441366,-460.0,0.00018499,2]
[374013219,1753181441376,-460.0,0.00018499,2]
[374013220,1753181441386,-2498.66,0.00018499,2]
[374013221,1753181441395,-460.0,0.00018499,2]
[374013222,1753181441405,-1410.27,0.00018499,2]
[374013223,1753181441415,-460.0,0.00018499,2]
[374013224,1753181441424,-930.79,0.00018499,2]
[374013225,1753181441434,-460.0,0.00018499,2]
[374013226,1753181441444,-460.0,0.00018499,2]
[374013227,1753181441453,-512.51036298,0.00018499,2]
[374013228,1753181441463,-296.08,0.00018499,2]
[374013229,1753181441472,-460.0,0.00018499,2]
[374013230,1753181441482,-460.0,0.00018499,2]
[374013231,1753181441491,-1069.15,0.00018499,2]
[374013232,1753181441501,-460.0,0.00018499,2]
[374013233,1753181441512,-460.0,0.000185,2]
[374013234,1753181441522,-500.97,0.000185,2]
[374013235,1753181441531,-479.89,0.000185,2]
[374013236,1753181441541,-460.0,0.000185,2]
[374013237,1753181441550,-460.0,0.000185,2]
[374013238,1753181441560,-460.0,0.000185,2]
[374013239,1753181441570,-460.0,0.000185,2]
[374013240,1753181441579,-3622.45,0.000185,2]
[374013241,1753181441589,-460.0,0.000185,2]
[374013242,1753181441599,-819.49,0.000185,2]
[374013243,1753181441609,-460.0,0.000185,2]
[374013244,1753181441618,-460.0,0.00018501,2]
[374013245,1753181441627,-511.16,0.00018501,2]
[374013246,1753181441637,-1698.54,0.00018501,2]
[374013247,1753181441646,-585.64,0.00018502,2]
[374013248,1753181441655,-409.9,0.00018502,2]
[374013249,1753181441665,-743.76,0.00018502,2]
[374013250,1753181441674,-2113.34,0.00018502,2]
[374013251,1753181441683,-1006.03,0.00018502,2]
[374013252,1753181441692,-460.0,0.00018503,2]
[374013253,1753181441702,-684.09,0.00018504,2]
[374013254,1753181441712,-4372.02875841,0.00018728,2]
[374013255,1753181441721,-460.0,0.00018773,2]
[374013256,1753181441730,-460.0,0.00018773,2]
[374013257,1753181441739,-460.0,0.00018773,2]
[374013258,1753181441749,-460.0,0.00018773,2]
[374013259,1753181441758,-1625.59,0.00018773,2]
[374013260,1753181441767,-460.0,0.00018773,2]
[374013261,1753181441777,-460.0,0.00018773,2]
[374013262,1753181441786,-2498.66,0.00018773,2]
[374013263,1753181441795,-460.0,0.00018773,2]
[374013264,1753181441804,-1410.27,0.00018773,2]
[374013265,1753181441814,-495.1,0.00018773,2]
[374013266,1753181441824,-930.79,0.00018773,2]
[374013267,1753181441834,-460.0,0.00018773,2]
[374013268,1753181441843,-460.0,0.00018773,2]
[374013269,1753181441854,-460.0,0.00018773,2]
[374013270,1753181441867,-460.0,0.00018773,2]
[374013271,1753181441881,-1069.15,0.00018773,2]
[374013272,1753181441894,-460.0,0.00018773,2]
[374013273,1753181441907,-460.0,0.00018774,2]
[374013274,1753181441917,-500.97,0.00018774,2]
[374013275,1753181441928,-479.89,0.00018774,2]
[374013276,1753181441941,-460.0,0.00018774,2]
[374013277,1753181441953,-460.0,0.00018774,2]
[374013278,1753181441968,-460.0,0.00018774,2]
[374013279,1753181441980,-460.0,0.00018774,2]
[374013280,1753181441992,-3622.45,0.00018774,2]
[374013281,1753181442004,-460.0,0.00018774,2]
[374013282,1753181442017,-819.49,0.00018774,2]
[374013283,1753181442031,-460.0,0.00018774,2]
[374013284,1753181442043,-460.0,0.00018775,2]